bitfinex-derivatives/quotes_SOLF0:USTF0_20250202
["timestamp","ask_amount","ask_price","bid_price","bid_amount"]
[1738500398817,194.0,210.28,210.09,3.3]
[1738500399022,0.03031856,210.21,210.09,8.0618]
[1738500399216,0.03031856,210.21,210.06,0.40322517]
[1738500399416,0.03031856,210.21,210.01,3.3]
[1738500399611,194.0,210.21,210.02,167.00424551]
[1738500399815,0.03055203,210.14,210.02,162.24084551]
[1738500400014,0.03055203,210.14,209.98,1.4174]
[1738500400418,4.7609,210.14,209.98,1.4174]
[1738500400613,0.03654538,210.08,209.98,1.4174]
[1738500401215,0.03654538,210.08,209.91,94.24]
[1738500401617,1.4649,210.13,209.91,94.24]
[1738500401918,0.03268407,210.02,209.97,4.7646]
[1738500402422,1.4499,210.08,209.91,94.24]
[1738500402622,0.03515233,210.02,209.94,4.7652]
[1738500404024,0.03515233,210.02,209.92,4.7656]
[1738500404321,0.03515233,210.02,209.91,94.24]
[1738500404519,0.03515233,210.02,209.93,4.7653]
[1738500404725,0.03515233,210.02,209.85,1.5422]
[1738500405021,4.7634,210.03,209.85,1.5422]
[1738500405216,0.03477451,209.96,209.85,1.5422]
[1738500405614,0.03477451,209.96,209.92,4.7656]
[1738500405815,0.03477451,209.96,209.84,3.3]
[1738500406223,0.03477451,209.96,209.87,4.7668]
[1738500406422,0.03477451,209.96,209.84,3.3]
[1738500406821,0.03477451,209.96,209.85,0.87510568]
[1738500407324,0.03477451,209.96,209.91,4.7658]
[1738500407621,0.03477451,209.96,209.81,1.4095]
[1738500407817,0.03477451,209.96,209.89,4.7664]
[1738500408022,1.5446,210.02,209.82,3.3]
[1738500408324,0.03085164,209.95,209.85,4.7671]
[1738500408526,0.03085164,209.95,209.82,3.3]
[1738500408922,1.5481,209.96,209.86,4.7671]
[1738500409126,0.03114223,209.91,209.86,4.7671]
[1738500409521,0.03114223,209.91,209.81,1.4095]
[1738500409717,0.03114223,209.91,209.79,3.3]
[1738500409928,1.5481,209.96,209.79,3.3]
[1738500410118,0.03562439,209.87,209.75,1.4238]
[1738500410323,0.03562439,209.87,209.76,0.87567377]
[1738500410624,0.03562439,209.87,209.77,3.3]
[1738500410823,0.03562439,209.87,209.75,1.4238]
[1738500411121,0.03562439,209.87,209.73,4.8358]
[1738500411328,4.7666,209.89,209.78,4.7689]
[1738500411624,1.709e-05,209.82,209.73,3.3]
[1738500411821,1.5481,209.96,209.74,0.875475]
[1738500412131,1.4506,209.95,209.74,0.875475]
[1738500412325,1.4506,209.95,209.75,1.494]
[1738500412526,1.4506,209.95,209.76,0.875475]
[1738500412826,0.03533641,209.88,209.83,0.03414861]
[1738500413624,0.03533641,209.88,209.83,4.80194861]
[1738500413828,0.03533641,209.88,209.83,0.03414861]
[1738500414025,0.03533641,209.88,209.85,4.7673]
[1738500414427,0.03533641,209.88,209.83,0.03414861]
[1738500414723,0.03533641,209.88,209.83,3.33414861]
[1738500415231,0.03533641,209.88,209.84,4.7675]
[1738500415526,0.03533641,209.88,209.83,3.33414861]
[1738500415926,0.03533641,209.88,209.84,4.7675]
[1738500416227,0.03533641,209.88,209.83,3.33414861]
[1738500416427,0.03533641,209.88,209.85,4.7673]
[1738500416729,3.641e-05,209.88,209.83,3.33414861]
[1738500416932,3.641e-05,209.88,209.84,0.87524244]
[1738500417231,3.641e-05,209.88,209.87,4.7669]
[1738500420333,3.641e-05,209.88,209.83,0.03414861]
[1738500420734,3.641e-05,209.88,209.72,4.17544135]
[1738500420735,3.641e-05,209.88,209.73,0.87544135]
[1738500420934,4.76673641,209.88,209.76,4.7694]
[1738500421131,1.5427,209.87,209.72,3.3]
[1738500421833,1.5427,209.94,209.73,0.87562609]
[1738500422035,0.03314315,209.82,209.77,0.03048752]
[1738500422228,1.5427,209.94,209.73,0.87562609]
[1738500422436,1.4506,209.95,209.73,0.87562609]
[1738500422935,1.4506,209.95,209.74,0.95356155]
[1738500423132,1.4506,209.95,209.81,4.7683]
[1738500423334,0.03451599,209.87,209.82,0.03617034]
[1738500423635,0.03451599,209.87,209.86,4.7671]
[1738500424035,1.4506,209.95,209.85,3.3]
[1738500424230,0.03221782,209.89,209.82,0.03129905]
[1738500424535,0.03221782,209.89,209.83,3.33223349]
[1738500424935,1.4506,209.95,209.83,3.33223349]
[1738500425135,9.801e-05,209.88,209.83,3.33223349]
[1738500425334,9.801e-05,209.88,209.87,4.7669]
[1738500427036,9.801e-05,209.88,209.87,5.64199303]
[1738500428828,9.801e-05,209.88,209.87,5.64204048]
[1738500429241,9.801e-05,209.88,209.87,8.0669]
[1738500429438,9.801e-05,209.88,209.87,4.7669]
[1738500429640,9.801e-05,209.88,209.87,8.0669]
[1738500429937,9.801e-05,209.88,209.87,4.7669]
[1738500430239,9.801e-05,209.88,209.87,8.0669]
[1738500432344,9.801e-05,209.88,209.87,8.94207655]
[1738500433544,9.801e-05,209.88,209.87,8.0669]
[1738500433747,9.801e-05,209.88,209.87,4.7669]
[1738500434646,9.801e-05,209.88,209.83,0.03223349]
[1738500437744,9.801e-05,209.88,209.68,13.68045608]
[1738500437948,4.5387,209.9,209.75,4.17560346]
[1738500438251,2.9756,209.9,209.76,0.87539235]
[1738500438951,1.4187,209.9,209.88,4.7666]
[1738500439152,1.4187,209.9,209.81,0.03590036]
[1738500439153,1.4935,210.01,209.86,3.3]
[1738500439343,0.03666326,209.91,209.86,3.3]
[1738500439546,1.4327,209.98,209.89,4.7663]
[1738500439848,3.173e-05,209.91,209.86,3.33220814]
[1738500440043,1.4327,209.98,209.92,4.7658]
[1738500440348,1.4327,209.98,209.88,3.3]
[1738500440650,1.4327,209.98,209.91,4.766]
[1738500440849,1.4327,209.98,209.88,3.3]
[1738500441052,0.03651237,209.97,209.92,0.03067032]
[1738500441452,0.03651237,209.97,209.82,1.4468]
[1738500441652,1.4327,209.98,209.82,1.4468]
[1738500442257,1.4327,209.98,209.82,4.7468]
[1738500442553,0.03125623,209.92,209.88,0.03027062]
[1738500442753,0.03125623,209.92,209.78,3.3]
[1738500442956,1.4104,209.97,209.79,0.87559014]
[1738500443157,1.4104,209.97,209.89,4.7663]
[1738500443350,1.4104,209.97,209.78,3.3]
[1738500443553,1.4104,209.97,209.79,0.87533615]
[1738500443850,0.03452497,209.9,209.86,0.03537713]
[1738500444753,0.03452497,209.9,209.89,4.7664]
[1738500445049,0.03452497,209.9,209.86,0.03537713]
[1738500445653,0.03452497,209.9,209.88,4.7667]
[1738500446152,0.03452497,209.9,209.86,0.03537713]
[1738500446852,0.03452497,209.9,209.82,4.7678]
[1738500447357,4.7654,209.94,209.85,4.7674]
[1738500447551,4.7654,209.94,209.77,1.4461]
[1738500447752,1.4104,209.97,209.77,1.4461]
[1738500448059,0.03650457,209.88,209.85,4.7674]
[1738500448354,1.4104,209.97,209.75,22.34577064]
[1738500448557,0.0344458,209.89,209.75,22.41277708]
[1738500448760,1.4104,209.97,209.76,0.87565969]
[1738500449257,0.0324817,209.89,209.76,0.87565969]
[1738500449554,1.4104,209.97,209.76,0.87565969]
[1738500449760,0.03590916,209.85,209.76,0.87565969]
[1738500450057,0.03590916,209.85,209.77,0.87565969]
[1738500450258,1.4104,209.97,209.78,0.87565969]
[1738500450559,1.4104,209.97,209.79,0.87565969]
[1738500450759,1.4104,209.97,209.8,4.7683]
[1738500450958,1.4104,209.97,209.74,22.41277708]
[1738500451155,1.4104,209.97,209.74,10.14839955]
[1738500451457,0.03599711,209.88,209.83,0.03305872]
[1738500451649,0.03599711,209.88,209.74,3.3]
[1738500451854,1.5533,209.88,209.74,3.3]
[1738500452055,1.5533,209.88,209.73,13.77998774]
[1738500452252,1.5533,209.88,209.72,162.24084551]
[1738500452657,4.7688,209.79,209.72,162.24084551]
[1738500452860,4.7688,209.79,209.65,201.21858953]
[1738500452861,1.5076,209.78,209.65,163.72574551]
[1738500453157,1.5076,209.78,209.71,4.7704]
[1738500453357,0.03613914,209.74,209.65,162.24084551]
[1738500453555,3.914e-05,209.74,209.66,12.26247779]
[1738500453762,3.914e-05,209.74,209.72,4.7702]
[1738500454060,194.0,210.05,209.73,2.36062606]
[1738500454359,1.4534,210.03,209.74,5.68042606]
[1738500454551,1.4534,210.03,209.75,0.87572606]
[1738500454752,19.81184089,210.0,209.75,0.87572606]
[1738500455148,0.03248104,209.9,209.85,0.03363842]
[1738500455349,4.7646,209.98,209.85,4.7672]
[1738500455555,0.03155715,209.9,209.85,0.03207465]
[1738500455756,0.03155715,209.9,209.76,1.4832]
[1738500455757,0.03155715,209.9,209.77,0.87532263]
[1738500456067,9.78e-06,209.86,209.81,0.03540105]
[1738500456255,9.78e-06,209.86,209.77,0.87532263]
[1738500456461,19.81184089,210.0,209.77,0.87532263]
[1738500456858,1.4272,209.99,209.77,0.87532263]
[1738500457060,1.4272,209.99,209.86,4.7671]
[1738500457255,1.4272,209.99,209.86,0.03588359]
[1738500457460,0.03401096,209.9,209.86,0.03588359]
[1738500457662,1.4272,209.99,209.83,3.3]
[1738500457962,0.03458458,209.9,209.86,0.03169343]
[1738500458165,4.7654,209.94,209.81,4.7682]
[1738500458364,0.03526456,209.9,209.86,0.03140289]
[1738500458564,3.0631,209.93,209.78,3.3]
[1738500458763,1.4272,209.99,209.86,0.03303877]
[1738500459065,1.4272,209.99,209.79,0.87548794]
[1738500459860,1.4272,209.99,209.94,4.7652]
[1738500460264,1.46235155,209.99,209.94,0.03283089]
[1738500460459,1.46235155,209.99,209.96,4.7648]
[1738500460959,0.03515155,209.99,209.94,0.03283089]
[1738500461556,0.03515155,209.99,209.97,4.7646]
[1738500464464,5.155e-05,209.99,209.97,4.7646]
[1738500466674,5.155e-05,209.99,209.94,0.03283089]
[1738500466871,5.155e-05,209.99,209.98,4.7644]
[1738500470775,5.155e-05,209.99,209.98,5.63908296]
[1738500472277,5.155e-05,209.99,209.98,19.92908296]
[1738500473675,5.155e-05,209.99,209.98,5.63908296]
[1738500473880,5.155e-05,209.99,209.98,6.59155462]
[1738500474180,9.2928,210.25,210.14,4.7608]
[1738500474369,9.2928,210.25,210.12,3.3]
[1738500474370,4.5343,210.25,210.12,3.3]
[1738500474775,3.0177,210.25,210.12,3.3]
[1738500475280,0.03130639,210.21,210.16,0.03571234]
[1738500476779,0.03130639,210.21,210.2,4.7595]
[1738500478984,1.4285,210.3,210.16,0.03571234]
[1738500479284,1.4285,210.3,210.22,4.7588]
[1738500479479,2.8474,210.32,210.22,3.3]
[1738500479683,2.8474,210.32,210.25,4.7583]
[1738500479983,2.8474,210.32,210.22,3.3]
[1738500480181,0.03605982,210.31,210.26,0.03458647]
[1738500480382,2.8474,210.32,210.22,3.3]
[1738500480685,0.03382886,210.31,210.26,0.03236075]
[1738500480988,0.03382886,210.31,210.3,4.7572]
[1738500481183,4.7538,210.46,210.26,0.03066161]
[1738500481383,2.8474,210.56,210.26,0.03066161]
[1738500481681,4.7528,210.5,210.24,0.87360104]
[1738500481881,17.1374,210.56,210.24,0.87360104]
[1738500482084,2.8474,210.56,210.24,0.87360104]
[1738500482280,0.03022989,210.42,210.4,4.7549]
[1738500482677,2.8474,210.56,210.39,3.3]
[1738500482877,0.03576704,210.43,210.39,3.33608331]
[1738500483081,2.8474,210.56,210.39,3.3]
[1738500483488,6.218e-05,210.43,210.41,4.7547]
[1738500483687,2.8474,210.56,210.4,1.4863]
[1738500484188,2.8474,210.56,210.39,3.3]
[1738500484586,4.7517,210.55,210.39,3.3]
[1738500484787,0.03544468,210.5,210.45,0.03629895]
[1738500486691,0.03544468,210.5,210.37,3.3]
[1738500486988,2.8474,210.56,210.34,3.3]
[1738500487390,4.753,210.49,210.34,3.3]
[1738500487592,2.8474,210.56,210.34,3.3]
[1738500487983,0.03108583,210.44,210.39,0.03461589]
[1738500488290,2.8474,210.56,210.34,3.3]
[1738500488696,0.03617944,210.44,210.39,0.03260299]
[1738500488991,7.944e-05,210.44,210.39,0.03260299]
[1738500489194,2.8474,210.56,210.45,4.7536]
[1738500489389,2.8474,210.56,210.35,2.9461]
[1738500489687,2.8474,210.56,210.36,0.8730977]
[1738500490092,0.03445417,210.48,210.44,0.03448865]
[1738500490391,194.0,210.69,210.45,3.3]
[1738500490594,1.5037,210.62,210.46,1.5258]
[1738500490789,1.5037,210.62,210.5,4.7525]
[1738500490988,1.5037,210.62,210.46,1.5258]
[1738500491591,0.03058105,210.56,210.52,0.03108179]
[1738500492795,0.03058105,210.56,210.45,3.3]
[1738500492992,0.03058105,210.56,210.45,8.0538]
[1738500493187,0.03058105,210.56,210.45,3.3]
[1738500494197,0.03058105,210.56,210.48,0.03513817]
[1738500494396,0.03058105,210.56,210.39,3.3]
[1738500494594,4.7522,210.52,210.39,4.7551]
[1738500494799,1.5031,210.58,210.38,3.3]
[1738500495299,4.7528,210.5,210.4,4.7548]
[1738500495591,1.4666,210.49,210.46,0.03339764]
[1738500495798,4.7536,210.46,210.37,4.7554]
[1738500496097,1.4666,210.49,210.37,4.7554]
[1738500496292,1.4666,210.49,210.31,1.5425]
[1738500496497,1.4666,210.49,210.32,3.3]
[1738500497196,0.03454273,210.43,210.38,0.03073767]
[1738500497699,0.03454273,210.43,210.4,4.7549]
[1738500497900,0.03454273,210.43,210.38,0.03073767]
[1738500498697,0.03454273,210.43,210.41,4.7545]
[1738500498899,0.03454273,210.43,210.38,0.03073767]
[1738500499295,0.03454273,210.43,210.39,4.755]
[1738500499500,0.03454273,210.43,210.38,0.03073767]
[1738500499697,0.03454273,210.43,210.31,1.5425]
[1738500499898,0.03454273,210.43,210.29,3.3]
[1738500500301,1.5212,210.49,210.29,3.3]
[1738500500499,1.5212,210.49,210.26,1.4823]
[1738500500997,4.7552,210.39,210.37,0.03353521]
[1738500501194,1.5212,210.38,210.26,3.3]
[1738500501499,4.7561,210.35,210.24,4.7584]
[1738500501806,1.5212,210.38,210.2,1.4823]
[1738500502104,4.7568,210.32,210.2,4.7593]
[1738500502295,1.5212,210.38,210.18,48.57412595]
[1738500502491,1.5212,210.38,210.1,2.9292]
[1738500502693,0.03497809,210.31,210.27,0.03397109]
[1738500502892,0.03497809,210.31,210.16,3.3]
[1738500503095,0.03497809,210.31,210.2,4.7593]
[1738500503301,0.03497809,210.31,210.16,3.3]
[1738500503501,1.5212,210.38,210.16,3.3]
[1738500503800,1.5212,210.38,210.15,94.1]
[1738500504003,194.0,210.37,210.15,94.1]
[1738500504203,4.7584,210.25,210.24,0.03369314]
[1738500504393,0.03260065,210.29,210.1,1.4823]
[1738500504597,0.03260065,210.29,210.01,3.0483]
[1738500504794,3.3,210.31,210.02,5.66906392]
[1738500504997,3.3,210.31,210.03,0.87456392]
[1738500505198,4.7584,210.25,210.14,4.7606]
[1738500505398,1.504,210.24,210.02,4.7945]
[1738500505602,0.03366278,210.22,210.17,0.03126739]
[1738500505803,0.03366278,210.22,210.13,4.7609]
[1738500506104,1.504,210.24,210.12,3.3]
[1738500507004,0.03577362,210.2,210.12,3.3]
[1738500507203,0.03577362,210.2,210.18,4.7597]
[1738500508295,0.03577362,210.2,210.12,3.3]
[1738500508702,0.03577362,210.2,210.12,4.7612]
[1738500508903,0.03577362,210.2,210.07,3.3]
[1738500509305,1.4338,210.22,210.07,3.3]
[1738500509503,4.7595,210.2,210.07,3.3]
[1738500509800,0.03286558,210.16,210.02,1.4945]
[1738500510007,0.03286558,210.16,210.03,3.3]
[1738500510306,1.4338,210.22,210.03,3.3]
[1738500510504,0.03322602,210.12,210.06,4.7626]
[1738500510701,0.03322602,210.12,210.03,3.3]
[1738500512001,0.03322602,210.12,210.1,4.7617]
[1738500512506,0.03322602,210.12,210.03,3.3]
[1738500512700,0.03322602,210.12,210.08,4.7621]
[1738500513403,0.03322602,210.12,210.03,3.3]
[1738500514005,0.03322602,210.12,210.1,4.7615]
[1738500514506,0.03322602,210.12,210.03,3.3]
[1738500514802,0.03322602,210.12,210.11,4.7615]
[1738500515408,1.4905,210.23,210.03,17.59]
[1738500515608,1.4905,210.23,210.04,0.87439108]
[1738500516702,0.03313005,210.16,210.11,0.03304097]
[1738500517096,1.504,210.24,210.11,0.03304097]
[1738500517097,1.504,210.24,210.15,4.7606]
[1738500517302,1.504,210.24,210.14,3.3]
[1738500517806,1.4491,210.29,210.14,3.3]
[1738500518005,1.4181,210.36,210.15,1.5085]
[1738500518404,0.03345971,210.28,210.23,0.03509611]
[1738500518805,0.03345971,210.28,210.15,1.5085]
[1738500519003,0.03345971,210.28,210.23,0.03536418]
[1738500519203,1.4181,210.36,210.23,0.03536418]
[1738500519403,0.03284802,210.28,210.23,0.03536418]
[1738500519706,0.03284802,210.28,210.25,4.7583]
[1738500520208,0.03284802,210.28,210.26,4.7579]
[1738500520609,0.03284802,210.28,210.23,0.03289178]
[1738500522706,0.03284802,210.28,210.24,4.7585]
[1738500523008,0.03284802,210.28,210.23,0.03289178]
[1738500523609,0.03284802,210.28,210.15,3.32]
[1738500523807,0.03284802,210.28,210.12,1.5588]
[1738500524007,4.7588,210.23,210.11,3.32]
[1738500524311,4.7588,210.23,210.09,1.5513]
[1738500524312,4.7588,210.23,210.09,4.8713]
[1738500524512,4.7585,210.24,210.14,4.7608]
[1738500524712,0.03536309,210.18,210.14,0.03167627]
[1738500525010,1.5102,210.3,210.09,1.5513]
[1738500525205,0.03126478,210.18,210.14,0.03386641]
[1738500526006,0.03126478,210.18,210.17,4.7601]
[1738500526906,0.03126478,210.18,210.14,0.03386641]
[1738500527113,0.03126478,210.18,210.15,4.7604]
[1738500527303,0.03126478,210.18,210.14,0.03386641]
[1738500527710,0.03126478,210.18,210.17,4.7601]
[1738500528010,0.03126478,210.18,210.14,0.03386641]
[1738500530314,0.03126478,210.18,210.14,4.79466641]
[1738500530515,0.03126478,210.18,210.14,0.03386641]
[1738500531013,0.03126478,210.18,210.15,4.7605]
[1738500531207,0.03126478,210.18,210.14,0.03386641]
[1738500533312,0.03126478,210.18,210.04,4.7969]
[1738500533513,14.29,210.28,210.01,1.5266]
[1738500533709,14.29,210.26,210.01,1.5266]
[1738500533909,4.7607,210.15,210.07,4.7624]
[1738500534105,14.29,210.23,210.0,4.8329]
[1738500534310,1.4099,210.14,210.0,1.5329]
[1738500534506,1.4887,210.13,210.0,1.5329]
[1738500534713,6.2498,210.13,210.0,1.5329]
[1738500534910,0.03288752,210.09,210.0,1.5329]
[1738500535414,0.03288752,210.09,210.02,4.7634]
[1738500535614,0.03288752,210.09,210.0,1.5329]
[1738500536016,0.03288752,210.09,209.99,4.7642]
[1738500536217,1.4887,210.13,209.99,4.7642]
[1738500536416,1.4887,210.13,209.95,1.5504]
[1738500536616,0.03224618,210.06,209.95,1.5504]
[1738500537511,0.03224618,210.06,209.99,4.7641]
[1738500537910,0.03224618,210.06,209.93,3.3]
[1738500538112,19.0787,210.13,209.92,1.4777]
[1738500538414,0.032079,210.01,209.92,1.4777]
[1738500538812,0.032079,210.01,209.87,1.4247]
[1738500539112,14.29,210.11,209.86,163.71854551]
[1738500539313,0.03253555,209.96,209.91,4.7659]
[1738500539513,1.4747,209.98,209.86,1.4777]
[1738500539815,0.03253917,209.96,209.86,1.4777]
[1738500540615,1.4747,210.09,209.86,1.4777]
[1738500541016,1.4747,210.09,209.87,0.87519226]
[1738500541213,4.7631,210.04,209.95,4.7651]
[1738500541413,1.4747,210.09,209.86,1.4777]
[1738500541609,1.4747,210.09,209.87,18.44508928]
[1738500541809,7.986e-05,210.0,209.95,0.03172152]
[1738500542215,7.986e-05,210.0,209.99,4.7642]
[1738500542418,7.986e-05,210.0,209.99,8.0642]
[1738500544019,7.986e-05,210.0,209.99,9.6118]
[1738500544522,7.986e-05,210.0,209.99,10.48651636]
[1738500544908,7.986e-05,210.0,209.99,9.6118]
[1738500545114,7.986e-05,210.0,209.99,10.48647282]
[1738500545714,7.986e-05,210.0,209.99,11.92767282]
[1738500546825,7.986e-05,210.0,209.99,11.92767407]
[1738500547312,7.986e-05,210.0,209.99,8.62767407]
[1738500547518,7.986e-05,210.0,209.99,2.9888]
[1738500547717,7.986e-05,210.0,209.99,1.4412]
[1738500547914,4.7612,210.13,209.99,1.4412]
[1738500548221,1.415,210.21,209.99,1.4412]
[1738500548921,1.415,210.21,210.01,4.7637]
[1738500549126,0.03466214,210.12,210.08,0.0336945]
[1738500549314,0.03466214,210.12,209.99,1.4412]
[1738500549518,1.415,210.21,210.03,4.7631]
[1738500549722,0.03272652,210.14,210.08,0.03649328]
[1738500550023,0.03272652,210.14,210.07,4.7624]
[1738500550217,4.7603,210.17,210.09,0.03270126]
[1738500550422,0.03050756,210.09,209.99,1.4412]
[1738500550619,0.03050756,210.09,210.08,4.7622]
[1738500550824,1.415,210.21,209.99,1.4412]
[1738500551025,0.03044962,210.11,210.06,0.03111848]
[1738500551223,0.03044962,210.11,210.1,4.7617]
[1738500551420,0.03044962,210.11,210.06,0.03111848]
[1738500551421,0.0304446,210.11,209.99,1.4412]
[1738500551921,4.46e-05,210.11,210.09,4.7619]
[1738500553018,4.46e-05,210.11,210.08,4.7621]
[1738500553322,4.46e-05,210.11,210.08,0.03292669]
[1738500553922,4.46e-05,210.11,210.09,4.7619]
[1738500554220,4.46e-05,210.11,210.08,0.03292669]
[1738500554418,4.46e-05,210.11,210.1,4.7617]
[1738500557228,4.46e-05,210.11,210.09,1.5389]
[1738500557423,4.46e-05,210.11,210.08,0.03292669]
[1738500561924,4.46e-05,210.11,209.99,3.3]
[1738500562123,1.5326,210.15,209.99,3.3]
[1738500562330,1.5326,210.15,209.93,1.4376]
[1738500562629,1.5326,210.15,209.94,3.3]
[1738500563029,0.03393963,210.07,210.02,0.03601267]
[1738500563224,0.03393963,210.07,209.94,3.3]
[1738500563426,1.5326,210.15,210.02,0.03008149]
[1738500563627,4.7615,210.11,210.03,4.7633]
[1738500563822,0.03425491,210.11,210.06,0.03489889]
[1738500564129,1.5326,210.15,210.01,4.7637]
[1738500564534,1.5326,210.15,209.93,4.7376]
[1738500565127,4.7632,210.04,210.02,0.0360845]
[1738500565331,1.5012,210.03,209.98,4.7644]
[1738500565532,1.5012,210.03,209.93,4.7376]
[1738500565732,1.5012,210.03,209.96,4.7649]
[1738500566033,1.5012,210.03,209.93,1.4376]
[1738500566230,1.5012,210.03,209.85,2.9768]
[1738500566432,0.03426089,210.0,209.92,4.7657]
[1738500566631,0.03426089,210.0,209.85,4.842]
[1738500566833,1.5493,210.02,209.85,4.842]
[1738500567035,1.5012,210.03,209.98,4.7644]
[1738500567236,8.02e-06,209.96,209.85,4.842]
[1738500567539,1.5012,210.03,209.98,4.7643]
[1738500568130,1.5012,210.03,209.96,4.7647]
[1738500568531,0.03488389,210.02,209.97,0.03535801]
[1738500568731,1.5012,210.03,209.84,1.4966]
[1738500569538,1.5012,210.03,209.85,0.87524836]
[1738500569737,1.5012,210.03,209.85,2.37254836]
[1738500569937,0.03194534,209.96,209.86,0.87524836]
[1738500570135,0.03194534,209.96,209.87,0.87514873]
[1738500570335,0.03194534,209.96,209.88,0.87514873]
[1738500570537,0.03194534,209.96,209.85,1.4973]
[1738500570736,4.7626,210.06,209.85,1.4973]
[1738500570737,1.5493,210.09,209.92,4.7656]
[1738500570934,1.5493,210.09,209.93,3.32]
[1738500571139,1.4249,210.16,209.94,1.4533]
[1738500571437,4.762,210.09,209.98,4.7643]
[1738500571638,1.512,210.15,209.94,1.4533]
[1738500571834,0.03033523,210.06,210.01,0.03134205]
[1738500572233,0.03033523,210.06,209.94,1.4533]
[1738500572540,0.03033523,210.06,210.01,0.03289306]
[1738500573038,0.03033523,210.06,210.01,4.79659306]
[1738500573239,0.03033523,210.06,210.01,0.03289306]
[1738500574241,0.03033523,210.06,210.03,4.7633]
[1738500574742,0.03033523,210.06,210.01,0.03289306]
[1738500576137,0.03033523,210.06,210.01,4.79669306]
[1738500576340,0.03033523,210.06,210.01,0.03289306]
[1738500576842,0.03033523,210.06,210.03,4.7633]
[1738500577945,0.03033523,210.06,210.01,0.03289306]
[1738500579346,0.03033523,210.06,210.04,4.763]
[1738500579648,0.03033523,210.06,210.01,0.03289306]
[1738500580041,0.03033523,210.06,210.05,4.7629]
[1738500580244,0.03033523,210.06,210.01,0.03289306]
[1738500584546,0.03033523,210.06,210.01,4.79649306]
[1738500584846,0.03033523,210.06,210.01,0.03289306]
[1738500585750,0.03033523,210.06,210.02,4.7635]
[1738500586149,0.03033523,210.06,210.01,0.03289306]
[1738500586550,0.03033523,210.06,210.01,4.79639306]
[1738500587949,0.03033523,210.06,210.02,4.7635]
[1738500588450,0.03033523,210.06,210.01,0.03289306]
[1738500588654,0.03033523,210.06,210.02,4.7634]
[1738500588846,0.03033523,210.06,210.01,0.03289306]
[1738500589849,0.03033523,210.06,210.03,4.7632]
[1738500590045,0.03033523,210.06,210.01,0.03289306]
[1738500590246,0.03033523,210.06,209.96,4.7648]
[1738500590549,4.7624,210.07,209.91,3.36]
[1738500591350,0.03085248,210.01,209.91,3.36]
[1738500592250,0.03085248,210.01,209.98,4.7644]
[1738500592443,0.03085248,210.01,209.91,3.36]
[1738500593159,0.03085248,210.01,210.0,4.764]
[1738500594853,0.03085248,210.01,209.98,4.7642]
[1738500595053,1.5109,210.14,209.98,4.7642]
[1738500595251,0.03505569,210.02,209.98,4.7642]
[1738500595551,0.03073579,210.02,209.99,4.7642]
[1738500595751,0.03073579,210.02,209.95,3.34]
[1738500596450,6.2719,210.14,209.95,3.34]
[1738500596647,1.5109,210.14,209.96,1.4367]
[1738500597054,1.5109,210.14,209.97,1.5414]
[1738500597251,1.5109,210.14,209.98,0.87474297]
[1738500597648,1.4249,210.16,210.09,4.7619]
[1738500597853,0.03380823,210.08,209.97,1.5414]
[1738500598154,1.4249,210.16,210.1,0.03369425]
[1738500598355,1.4249,210.16,209.98,0.87473818]
[1738500598554,0.03655772,210.15,210.11,0.03369425]
[1738500598755,0.030301,210.09,209.97,1.5414]
[1738500598954,4.7611,210.13,209.97,1.5414]
[1738500599155,0.03188352,210.05,210.01,0.03369425]
[1738500600660,1.4249,210.16,210.01,0.03369425]
[1738500600962,1.4249,210.16,209.97,1.5414]
[1738500601258,1.4249,210.16,209.98,0.87471722]
[1738500601658,1.4249,210.16,210.03,4.7632]
[1738500601856,0.03316157,210.09,210.05,0.03279809]
[1738500602455,0.03316157,210.09,210.06,3.34]
[1738500603963,0.03316157,210.09,210.05,0.03279809]
[1738500604465,4.7624,210.07,209.98,4.7644]
[1738500604662,0.03316157,210.09,209.96,12.27120157]
[1738500604962,15.7149,210.16,209.95,162.24084551]
[1738500605154,14.29,210.14,209.95,162.24084551]
[1738500605357,14.29,210.14,209.9,3.34]
[1738500605662,4.79400981,210.04,210.0,0.03277968]
[1738500605858,1.4852,210.03,209.96,4.7649]
[1738500606061,4.7635,210.02,210.0,0.03013192]